fUST/lending_fUST_20260207
["ID","MTS","AMOUNT","RATE_DAILY","PERIOD"]
[404661200,1770393720034,-499.58575049,0.00021918,2]
[404661201,1770393720067,-500.0,0.00021918,2]
[404661202,1770393720096,-150.0,0.00022996,2]
[404661203,1770393720115,-499.58575049,0.00022996,2]
[404661204,1770393720329,-500.0,0.00022996,2]
[404661205,1770393720362,-150.0,0.00022996,2]
[404661206,1770393720372,-459.71806802,0.00022996,2]
[404661261,1770394157959,-1098.442971,0.00023421,2]
[404661262,1770394157991,-3533.3475384,0.00023485,3]
[404661263,1770394158021,-238.85640737,0.0002351,2]
[404661265,1770394163757,-4561.38961406,0.00023535,2]
[404661266,1770394163805,-451.735734,0.00023535,2]
[404661267,1770394172615,-314.76466275,0.00022552,2]
[404661268,1770394172646,-359.3713121,0.00022552,2]
[404661269,1770394172679,-425.49503788,0.00023535,2]
[404661325,1770394238116,-1000.0,0.00023743,5]
[404661326,1770394238126,-1000.0,0.0002393,30]
[404661327,1770394238136,-321.8647845,0.00024074,2]
[404661328,1770394238148,-4234.41573329,0.00024074,2]
[404661329,1770394238157,-1170.0,0.00024895,2]
[404661330,1770394238167,-500.0,0.00024896,2]
[404661331,1770394238177,-407.92,0.00024896,2]
[404661332,1770394238187,-687.66426671,0.00024897,2]
[404661355,1770394244919,-2465.4700819,0.00024897,2]
[404661361,1770394245938,-482.8,0.00024897,2]
[404661362,1770394245950,-15702.54115459,0.00024897,2]
[404661363,1770394245962,-1982.35822267,0.00024897,2]
[404661364,1770394246028,-1376.0,0.00024897,2]
[404661369,1770394246247,-5323.61314428,0.00024897,2]
[404661370,1770394246257,-500.0,0.00024945,2]
[404661371,1770394246268,-500.0,0.00024945,2]
[404661372,1770394246278,-500.0,0.00024945,2]
[404661373,1770394246288,-203.64450093,0.00024945,2]
[404661374,1770394246297,-198.97955227,0.00024945,2]
[404661375,1770394246307,-348.5873387,0.00024945,2]
[404661423,1770394266867,500.0,0.00013273,2]
[404661424,1770394268332,459.19038588,0.00013273,2]
[404661463,1770394453168,-300.0,0.00021918,7]
[404661464,1770394453203,-4400.01,0.00023088,2]
[404661465,1770394458672,-599.99,0.00023088,2]
[404661466,1770394458704,-208.126988,0.00023321,2]
[404661467,1770394458737,-2635.2121128,0.00023321,2]
[404661468,1770394458831,-2754.15141252,0.00023321,2]
[404661469,1770394506880,500.0,0.00013699,2]
[404661470,1770394506934,1000.0,0.00014247,2]
[404661471,1770394506997,1227.8509917,0.00014795,2]
[404661472,1770394507625,500.0,0.00013699,2]
[404661473,1770394507683,872.35853343,0.00014247,2]
[404661474,1770394507714,500.0,0.00013273,2]
[404661475,1770394507750,911.34022662,0.00014368,2]
[404661476,1770394507819,1000.0,0.00013821,2]
[404661484,1770394686877,500.0,0.00013273,2]
[404661485,1770394686907,500.0,0.00013273,2]
[404661486,1770394687000,500.0,0.00013273,2]
[404661487,1770394687107,500.0,0.00013273,2]
[404661488,1770394687223,500.0,0.00013273,2]
[404661496,1770394863605,168.08766326,0.00013273,2]
[404661584,1770395078957,457.57,0.00030137,120]
[404661768,1770395432055,-300.23,0.00016495,2]
[404661772,1770395432150,-4699.77,0.00016495,2]
[404661773,1770395432159,-1200.0,0.00016661,2]
[404661774,1770395432169,-5000.0,0.00016662,2]
[404661775,1770395432179,-300.0,0.00016829,2]
[404661776,1770395432188,-289.0,0.00016829,2]
[404661777,1770395432198,-5000.0,0.0001683,2]
[404661778,1770395432207,-1226.65433087,0.00017,2]
[404661822,1770395440311,-908.97827091,0.00017,2]
[404661823,1770395440320,-6367.42085118,0.00017,2]
[404661824,1770395440330,-1667.33745958,0.00017339,2]
[404661825,1770395440339,-300.0,0.00017339,2]
[404661826,1770395440349,-300.0,0.00017339,2]
[404661827,1770395440359,-300.0,0.00017339,2]
[404661828,1770395440368,-300.0,0.00017339,2]
[404661829,1770395440377,-300.0,0.00017339,2]
[404661830,1770395440387,-300.0,0.00017339,2]
[404661831,1770395440396,-300.0,0.00017339,2]
[404661832,1770395440405,-300.0,0.00017339,2]
[404661833,1770395440415,-300.0,0.00017339,2]
[404661834,1770395440424,-300.0,0.00017339,2]
[404661835,1770395440434,-300.0,0.00017339,2]
[404661836,1770395440443,-300.0,0.00017339,2]
[404661837,1770395440453,-300.0,0.00017339,2]
[404661838,1770395440462,-300.0,0.00017339,2]
[404661839,1770395440471,-300.0,0.00017339,2]
[404661840,1770395440480,-600.0,0.00017685,2]
[404661841,1770395440489,-1200.0,0.00018295,2]
[404661842,1770395440498,-386.17634577,0.00019453,2]
[404661843,1770395440515,-333.82365423,0.00019453,2]
[404661844,1770395440524,-864.0,0.00021399,10]
[404661845,1770395440533,-300.0,0.00021918,7]
[404661846,1770395440661,-208.126988,0.00023321,2]
[404661847,1770395440671,-31.72167294,0.00023435,2]
[404661864,1770395445287,-5000.0,0.0001683,2]
[404661865,1770395445297,-695.02668818,0.00023435,2]
[404661866,1770395445306,-1000.0,0.00023538,10]
[404661867,1770395445316,-225.78376269,0.00024525,7]
[404661868,1770395445326,-437.61649377,0.00024525,7]
[404661869,1770395445336,-1143.89189489,0.00024525,7]
[404661870,1770395445345,-1504.61492846,0.0002465,2]
[404661871,1770395445355,-179.89206476,0.000247,2]
[404661872,1770395445365,-500.0,0.00024843,2]
[404661873,1770395445374,-500.0,0.00024843,2]
[404661874,1770395445383,-524.69165054,0.00024843,2]
[404661875,1770395445392,-500.0,0.00024843,2]
[404661876,1770395445402,-1001.34745126,0.00024843,2]
[404661877,1770395445412,-4244.07619775,0.00024844,2]
[404661878,1770395445423,-3599.1,0.00024844,2]
[404661879,1770395445435,-1762.92381098,0.00024844,2]
[404661880,1770395445447,-4560.23826447,0.00024844,2]
[404661881,1770395445459,-6859.8160266,0.00024844,2]
[404661882,1770395445467,-6370.96591437,0.00024984,2]
[404661883,1770395445477,-209.40437684,0.00024985,2]
[404661884,1770395445486,-217.15233878,0.00024985,2]
[404661885,1770395445496,-225.18697532,0.00024985,2]
[404661886,1770395445506,-233.51889341,0.00024985,2]
[404661887,1770395445515,-242.15909246,0.00024985,2]
[404661888,1770395445527,-74.90969208,0.00024985,2]
[404661889,1770395445539,-176.2092868,0.00024985,2]
[404661891,1770395445548,-260.4103811,0.00024985,2]
[404661892,1770395445558,-270.0455652,0.00024985,2]
[404661893,1770395445567,-280.03725112,0.00024985,2]
[404661894,1770395445577,-290.39862941,0.00024985,2]
[404661895,1770395445587,-301.1433787,0.00024985,2]
[404661896,1770395445596,-500.0,0.00024985,2]
[404661897,1770395445606,-500.0,0.00024985,2]
[404661898,1770395445615,-500.0,0.00024985,2]
[404661899,1770395445624,-500.0,0.00024985,2]
[404661900,1770395445634,-500.0,0.00024985,2]
[404661901,1770395445643,-500.0,0.00024985,2]
[404661902,1770395445652,-500.0,0.00024985,2]
[404661903,1770395445662,-92.54623601,0.00024985,2]
[404661904,1770395445674,-407.45376399,0.00024985,2]
[404661905,1770395445684,-500.0,0.00024985,2]
[404661907,1770395445693,-500.0,0.00024985,2]
[404661908,1770395445703,-198.14868384,0.00024985,2]
[404661913,1770395446283,-301.85131616,0.00024985,2]
[404661914,1770395446293,-250.0,0.00024985,2]
[404661915,1770395446302,-250.0,0.00024985,2]
[404661916,1770395446312,-250.0,0.00024985,2]
[404661917,1770395446322,-250.0,0.00024985,2]
[404661918,1770395446331,-250.0,0.00024985,2]
[404661919,1770395446341,-378.83486372,0.00024985,2]
[404661920,1770395446350,-250.0,0.00024985,2]
[404661921,1770395446360,-176.13103682,0.00024986,2]
[404661922,1770395446369,-396.76637117,0.00024986,2]
[404661923,1770395446379,-316.71883041,0.00024986,2]
[404661924,1770395446389,-714.1794681,0.00024986,2]
[404661925,1770395446398,-1269.65238773,0.00024986,2]
[404661926,1770395446408,-401.59887602,0.00024988,2]
[404661927,1770395446417,-278.28191905,0.00024988,2]
[404661928,1770395446426,-458.51117388,0.00024988,2]
[404661929,1770395446435,-500.90745429,0.00024988,2]
[404661930,1770395446445,-1059.19,0.0002499,3]
[404661931,1770395446455,-529.59,0.0002499,3]
[404661932,1770395446464,-264.8,0.0002499,3]
[404661933,1770395446474,-794.4,0.0002499,3]
[404661934,1770395446484,-295.49,0.0002499,3]
[404661935,1770395446494,-363.93057589,0.0002499,3]
[404661936,1770395446505,-522.53942411,0.0002499,3]
[404661937,1770395446515,-246.24,0.0002499,3]
[404661938,1770395446527,-499.32,0.0002499,3]
[404661939,1770395446536,-97.4397873,0.00025,7]
[404661940,1770395446551,-52.7202127,0.00025,7]
[404661941,1770395446560,-26601.33102759,0.00025,2]
[404661942,1770395446571,-2080.17,0.00025,2]
[404661943,1770395446745,-72933.64377464,0.00025,2]
[404661944,1770395446755,-539.76,0.00025,14]
[404661945,1770395446764,-12181.92257364,0.00025,2]
[404661946,1770395446775,-2035.0,0.000251,3]
[404661947,1770395446784,-639.66220767,0.00025196,2]
[404661948,1770395446794,-28539.11,0.000252,2]
[404661949,1770395446803,-482.25,0.00025456,2]
[404661950,1770395446812,-6257.0,0.00025556,2]
[404661951,1770395446822,-5000.0,0.000256,2]
[404661952,1770395446831,-1000.0,0.00025892,10]
[404661953,1770395446840,-244.0,0.00025892,10]
[404661954,1770395446849,-1981.84802397,0.00025893,2]
[404661955,1770395446859,-1000.0,0.00026,8]
[404661956,1770395446868,-1833.65523316,0.000261,7]
[404661957,1770395446878,-217.45906282,0.00026112,2]
[404661958,1770395446887,-1721.437038,0.00026351,2]
[404661959,1770395446897,-2118.38,0.0002636,3]
[404661960,1770395446906,-1059.18,0.0002636,3]
[404661961,1770395446916,-529.6,0.0002636,3]
[404661962,1770395446925,-590.98,0.0002636,3]
[404661963,1770395446935,-492.48,0.0002636,3]
[404661964,1770395446945,-998.64,0.0002636,3]
[404661965,1770395446954,-1041.66666667,0.0002636,3]
[404661966,1770395446963,-741.48751943,0.0002636,3]
[404661967,1770395446973,-889.61163881,0.00027255,2]
[404661968,1770395446984,-158.0,0.000274,7]
[404661969,1770395446993,-539.76,0.000274,14]
[404661970,1770395447006,-400.0,0.00027427,3]
[404661971,1770395447016,-400.0,0.00027427,3]
[404661972,1770395447027,-1721.437038,0.0002746,2]
[404661973,1770395447036,-28539.11,0.000275,2]
[404661974,1770395447046,-981.45505827,0.000276,2]
[404661975,1770395447055,-981.45505825,0.000276,2]
[404661976,1770395447064,-981.45505825,0.000276,2]
[404661977,1770395447076,-981.45505825,0.000276,2]
[404661978,1770395447085,-711.0,0.0002772,3]
[404661979,1770395447094,-29411.82010895,0.0002799,2]
[404661996,1770395463142,-2013.07245642,0.00016495,2]
[404662000,1770395468291,500.0,0.00013273,2]
[404662037,1770395478922,500.0,0.00013273,2]
[404662044,1770395527621,500.0,0.00013699,2]
[404662052,1770395534253,300.0,0.00013673,2]
[404662053,1770395534474,500.0,0.00013273,2]
[404662054,1770395534568,500.0,0.00013699,2]
[404662062,1770395586768,500.0,0.00013273,2]
[404662063,1770395586824,222.15552708,0.00013821,2]
[404662087,1770395704579,500.0,0.00013273,2]
[404662142,1770395757106,526.91876926,0.00024843,120]
[404662200,1770395884022,500.0,0.00013273,2]
[404662201,1770395884079,358.73654042,0.00013821,2]
[404662309,1770396008112,475.0,0.0002799,120]
[404662310,1770396008582,224.679,0.0002799,120]
[404662354,1770396031820,5000.0,0.00015071,2]
[404662357,1770396039964,5000.0,0.00015071,2]
[404662358,1770396056187,5000.0,0.00015071,2]
[404662360,1770396063889,221.82715996,0.00015071,2]
[404662372,1770396079211,5000.0,0.00015071,2]
[404662414,1770396101628,2666.09515259,0.00015071,2]
[404662480,1770396224880,5000.0,0.00015071,2]
[404662548,1770396637241,-5000.0,0.00015274,2]
[404662550,1770396637250,-1097.16229824,0.00015459,2]
[404662569,1770396638050,5000.0,0.00015071,2]
[404662586,1770396638263,-6551.00531999,0.00015459,2]
[404662588,1770396638273,-300.0,0.00016994,2]
[404662590,1770396638283,-300.0,0.00016994,2]
[404662592,1770396638293,-300.0,0.00016994,2]
[404662594,1770396638310,-300.0,0.00016994,2]
[404662596,1770396638330,-300.0,0.00016994,2]
[404662598,1770396638352,-300.0,0.00016994,2]
[404662600,1770396638366,-300.0,0.00016994,2]
[404662602,1770396638377,-300.0,0.00016994,2]
[404662615,1770396638518,-300.0,0.00016994,2]
[404662618,1770396638537,-300.0,0.00016994,2]
[404662620,1770396638546,-300.0,0.00016994,2]
[404662622,1770396638557,-300.0,0.00016994,2]
[404662624,1770396638567,-300.0,0.00016994,2]
[404662626,1770396638578,-300.0,0.00016994,2]
[404662627,1770396638587,-300.0,0.00016994,2]
[404662629,1770396638596,-600.0,0.00017333,2]
[404662631,1770396638606,-720.0,0.00019066,2]
[404662633,1770396638616,-864.0,0.00020973,2]
[404662635,1770396638628,-500.0,0.00021303,2]
[404662637,1770396638637,-300.0,0.00021918,7]
[404662639,1770396638648,-1000.0,0.0002307,10]
[404662641,1770396638658,-179.9460162,0.00025187,2]
[404662643,1770396638668,-387.52427013,0.00025233,30]
[404662645,1770396638682,-387.52427013,0.0002537,30]
[404662647,1770396638695,-592.26902164,0.00025377,10]
[404662649,1770396638709,-407.73097836,0.00025377,10]
[404662651,1770396638719,-244.0,0.00025377,10]
[404662653,1770396638728,-387.52427013,0.00025479,30]
[404662655,1770396638738,-387.52427013,0.00025616,30]
[404662657,1770396638748,-387.52427013,0.00025726,30]
[404662659,1770396638757,-387.52427013,0.00025863,30]
[404662661,1770396638767,-387.52427013,0.00025973,30]
[404662663,1770396638776,-387.52427013,0.00026082,30]
[404662665,1770396638787,-387.52427013,0.00026219,30]
[404662667,1770396638798,-387.52427013,0.00026329,30]
[404662669,1770396638807,-387.52427013,0.00026466,30]
[404662671,1770396638816,-387.52427013,0.00026575,30]
[404662673,1770396638826,-1147.624692,0.00026857,2]
[404662675,1770396638835,-632.0,0.00026862,2]
[404662677,1770396638844,-150.0,0.00026862,2]
[404662679,1770396638853,-1373.0,0.00026862,2]
[404662681,1770396638862,-400.0,0.0002772,3]
[404662683,1770396638871,-405.0,0.00027747,3]
[404662685,1770396638880,-763.0,0.00027906,3]
[404662687,1770396638889,-1000.0,0.00027915,30]
[404662689,1770396638899,-492.0,0.00027915,30]
[404662691,1770396638908,-567.73816821,0.00027971,2]
[404662693,1770396638917,-500.0,0.00027971,2]
[404662695,1770396638927,-203.64450093,0.00027971,2]
[404662697,1770396638935,-224.96573895,0.00027971,2]
[404662699,1770396638944,-198.97955227,0.00027971,2]
[404662701,1770396638953,-500.0,0.00027971,2]
[404662703,1770396638962,-500.0,0.00027971,2]
[404662704,1770396638971,-500.0,0.00027971,2]
[404662706,1770396638981,-500.0,0.00027971,2]
[404662708,1770396638991,-500.0,0.00027971,2]
[404662711,1770396639001,-618.49616775,0.00027971,2]
[404662713,1770396639011,-500.0,0.00027971,2]
[404662715,1770396639021,-500.0,0.00027971,2]
[404662716,1770396639030,-500.0,0.00027971,2]
[404662718,1770396639040,-500.0,0.00027971,2]
[404662720,1770396639050,-500.0,0.00027971,2]
[404662722,1770396639060,-500.0,0.00027971,2]
[404662724,1770396639069,-500.0,0.00027971,2]
[404662726,1770396639079,-500.0,0.00027971,2]
[404662728,1770396639088,-500.0,0.00027971,2]
[404662730,1770396639096,-500.0,0.00027971,2]
[404662732,1770396639106,-500.0,0.00027971,2]
[404662734,1770396639115,-500.0,0.00027971,2]
[404662737,1770396639126,-500.0,0.00027971,2]
[404662738,1770396639136,-1147.624692,0.00027988,2]
[404662741,1770396639146,-534.66,0.0002799,3]
[404662743,1770396639158,-267.33,0.0002799,3]
[404662745,1770396639167,-802.0,0.0002799,3]
[404662747,1770396639177,-10980.4361725,0.0002799,2]
[404662748,1770396639186,-191.71,0.0002799,10]
[404662751,1770396639195,-500.0,0.00027999,2]
[404662752,1770396639205,-317.02232337,0.00027999,2]
[404662754,1770396639214,-481.01944874,0.00027999,2]
[404662757,1770396639227,-106865.79530975,0.00028,30]
[404662759,1770396639237,-1041.66666667,0.00028,30]
[404662761,1770396639249,-1000.0,0.00028,10]
[404662763,1770396639259,-431.8,0.00028,14]
[404662765,1770396639269,-150.16,0.00028,7]
[404662766,1770396639280,-400.0,0.0002804,3]
[404662769,1770396639290,-711.0,0.00028067,3]
[404662771,1770396639300,-317.0,0.00028118,3]
[404662773,1770396639310,-711.0,0.00028212,3]
[404662775,1770396639319,-741.48751943,0.00028289,2]
[404662777,1770396639330,-160.0,0.00028289,2]
[404662779,1770396639343,-1041.66666667,0.00028289,2]
[404662781,1770396639352,-600.0,0.00028332,43]
[404662782,1770396639364,-400.0,0.0002836,3]
[404662784,1770396639375,-3085.97623,0.00028431,60]
[404662786,1770396639385,-250.0,0.00028483,2]
[404662788,1770396639394,-250.0,0.00028483,2]
[404662790,1770396639404,-250.0,0.00028483,2]
[404662793,1770396639420,-205.02094771,0.00028483,2]
[404662795,1770396639431,-500.0,0.00028483,2]
[404662797,1770396639440,-500.0,0.00028483,2]
[404662799,1770396639449,-500.0,0.00028483,2]
[404662801,1770396639459,-250.0,0.00028483,2]
[404662803,1770396639468,-500.0,0.00028483,2]
[404662804,1770396639477,-250.0,0.00028483,2]
[404662806,1770396639486,-250.0,0.00028483,2]
[404662808,1770396639501,-500.0,0.00028483,2]
[404662810,1770396639511,-500.0,0.00028483,2]
[404662812,1770396639520,-2602.19918154,0.000285,60]
[404662910,1770396640447,-325.10458627,0.00028483,2]
[404662921,1770396640549,-174.89541373,0.00028483,2]
[404662924,1770396640561,-500.0,0.00028483,2]
[404662926,1770396640571,-500.0,0.00028483,2]
[404662928,1770396640582,-1825.08070627,0.000285,60]
[404663328,1770396644790,-500.0,0.00028483,2]
[404663330,1770396644800,-500.0,0.00028483,2]
[404663332,1770396644809,-250.0,0.00028483,2]
[404663334,1770396644818,-250.0,0.00028483,2]
[404663336,1770396644827,-238.99624944,0.00028483,2]
[404663420,1770396645635,-11.00375056,0.00028483,2]
[404663423,1770396645645,-250.0,0.00028483,2]
[404663425,1770396645654,-36.66801744,0.00028483,2]
[404663502,1770396646378,-314.41556195,0.00028483,2]
[404663504,1770396646388,-2773.83562919,0.000285,60]
[404663506,1770396646398,-2213.183005,0.000285,60]
[404663508,1770396646409,-2092.307331,0.000285,60]
[404663510,1770396646419,-181.08705034,0.000285,2]
[404663529,1770396646590,-22650.20294966,0.000285,2]
[404663531,1770396646598,-5490.21808626,0.0002859,2]
[404663533,1770396646608,-160.0,0.000286,20]
[404663535,1770396646617,-400.0,0.0002868,3]
[404663537,1770396646626,-1796.12,0.000287,2]
[404663538,1770396646635,-235.474149,0.000287,10]
[404663540,1770396646645,-4917.83108601,0.0002871,2]
[404663543,1770396646655,-12969.23563842,0.0002871,2]
[404663544,1770396646664,-300.23,0.0002871,2]
[404663546,1770396646674,-160.0,0.00028748,3]
[404663548,1770396646683,-710.0,0.00028758,3]
[404663550,1770396646692,-1041.66666667,0.000288,30]
[404663552,1770396646702,-400.0,0.00028835,3]
[404663554,1770396646711,-711.0,0.00028845,3]
[404663556,1770396646721,-156.58635574,0.00028885,2]
[404663558,1770396646730,-191.12378278,0.00028885,2]
[404663560,1770396646740,-314.97671643,0.00028885,2]
[404663562,1770396646750,-711.0,0.00028949,3]
[404663564,1770396646759,-16470.6542588,0.0002898,2]
[404663566,1770396646769,-99723.87227236,0.0002899,2]
[404663568,1770396646779,-41381.47871698,0.0002899,2]
[404663571,1770396646791,-2025.38074469,0.0002899,2]
[404663582,1770396646892,-15782.39208664,0.0002899,2]
[404663585,1770396646907,-10483.35,0.0002899,2]
[404663587,1770396646918,-7190.45165929,0.0002899,2]
[404663589,1770396646927,-256918.19366855,0.00029,2]
[404664128,1770396671061,339.37755271,0.00013273,2]
[404664144,1770396727523,500.0,0.00013699,2]
[404664145,1770396727582,1500.0,0.00014795,2]
[404664146,1770396727678,1000.0,0.00014247,2]
[404664147,1770396731089,300.0,0.00013673,2]
[404664148,1770396731151,600.0,0.00014221,2]
[404664149,1770396731203,900.0,0.00014768,2]
[404664150,1770396732441,500.0,0.00013699,2]
[404664151,1770396732501,1000.0,0.00014247,2]
[404664152,1770396732554,1500.0,0.00014795,2]
[404664153,1770396733924,500.0,0.00013273,2]
[404664154,1770396733975,1000.0,0.00013821,2]
[404664155,1770396734035,1500.0,0.00014368,2]
[404664156,1770396734093,2000.0,0.00014916,2]
[404664159,1770396789691,500.0,0.00013273,2]
[404664160,1770396789749,1000.0,0.00013821,2]
[404664161,1770396789787,1500.0,0.00014368,2]
[404664162,1770396789843,994.63419989,0.00014916,2]
[404664164,1770396797810,500.0,0.00013273,2]
[404664165,1770396797849,1000.0,0.00013821,2]
[404664166,1770396797880,1500.0,0.00014368,2]
[404664167,1770396797909,1186.92518623,0.00014916,2]
[404664171,1770396850805,500.0,0.00013699,2]
[404664172,1770396850853,1500.0,0.00014795,2]
[404664173,1770396850911,1000.0,0.00014247,2]
[404664174,1770396854807,300.0,0.00013673,2]
[404664175,1770396854858,600.0,0.00014221,2]
[404664176,1770396854917,900.0,0.00014768,2]
[404664177,1770396855545,500.0,0.00013699,2]
[404664178,1770396855603,1500.0,0.00014795,2]
[404664179,1770396855820,1000.0,0.00014247,2]
[404664180,1770396856183,5000.0,0.00015071,2]
[404664181,1770396857301,500.0,0.00013273,2]
[404664182,1770396857357,541.5064157,0.00013821,2]
[404664183,1770396866613,17000.0,0.00030136,120]
[404664185,1770396878612,5000.0,0.00015071,2]
[404664186,1770396900929,5000.0,0.00015071,2]
[404664188,1770396924074,5000.0,0.00015071,2]
[404664189,1770396946473,5000.0,0.00015071,2]
[404664190,1770396966810,500.0,0.00013699,2]
[404664191,1770396966873,1000.0,0.00014247,2]
[404664192,1770396966921,1500.0,0.00014795,2]
[404664193,1770396967351,1051.6,0.00030137,120]
[404664194,1770396968872,5000.0,0.00015071,2]
[404664195,1770396971750,419.78605782,0.00013699,2]
[404664196,1770396976463,300.0,0.00013673,2]
[404664197,1770396976517,330.70449328,0.00014221,2]
[404664198,1770396976877,401.70488794,0.00013699,2]
[404664199,1770396991279,5000.0,0.00015071,2]
[404664200,1770397014730,5000.0,0.00015071,2]
[404664207,1770397036957,5000.0,0.00015071,2]
[404664208,1770397060299,5000.0,0.00015071,2]
[404664210,1770397082607,5000.0,0.00015071,2]
[404664211,1770397082923,639.52283239,0.00013699,2]
[404664212,1770397104711,5000.0,0.00015071,2]
[404664213,1770397127157,5000.0,0.00015071,2]
[404664215,1770397149767,5000.0,0.00015071,2]
[404664216,1770397172010,5000.0,0.00015071,2]
[404664217,1770397194518,5000.0,0.00015071,2]
[404664225,1770397206236,500.0,0.00013273,2]
[404664226,1770397206285,1000.0,0.00013821,2]
[404664227,1770397217083,5000.0,0.00015071,2]
[404664228,1770397239627,5000.0,0.00015071,2]
[404664230,1770397262507,5000.0,0.00015071,2]
[404664231,1770397262760,-1644.35823426,0.000153,2]
[404664233,1770397284787,5000.0,0.00015071,2]
[404664241,1770397307041,5000.0,0.00015071,2]
[404664250,1770397329819,5000.0,0.00015071,2]
[404664252,1770397338432,345.39040608,0.00013699,2]
[404664255,1770397352206,5000.0,0.00015071,2]
[404664259,1770397375356,5000.0,0.00015071,2]
[404664265,1770397390112,500.0,0.00013273,2]
[404664266,1770397390165,798.96782818,0.00013821,2]
[404664267,1770397398418,5000.0,0.00015071,2]
[404664268,1770397420853,5000.0,0.00015071,2]
[404664269,1770397444174,5000.0,0.00015071,2]
[404664271,1770397468100,5000.0,0.00015071,2]
[404664274,1770397491064,5000.0,0.00015071,2]
[404664304,1770397513931,5000.0,0.00015071,2]
[404664306,1770397536376,5000.0,0.00015071,2]
[404664308,1770397558816,5000.0,0.00015071,2]
[404664317,1770397581550,5000.0,0.00015071,2]
[404664318,1770397604220,5000.0,0.00015071,2]
[404664320,1770397627074,5000.0,0.00015071,2]
[404664321,1770397627613,284.2211531,0.00013699,2]
[404664323,1770397649638,5000.0,0.00015071,2]
[404664335,1770397672283,5000.0,0.00015071,2]
[404664337,1770397694793,5000.0,0.00015071,2]
[404664360,1770397716826,5000.0,0.00015071,2]
[404664361,1770397739664,5000.0,0.00015071,2]
[404664370,1770397762424,5000.0,0.00015071,2]
[404664372,1770397770658,-1805.65082263,0.000153,2]
[404664373,1770397770687,-177.0,0.00015302,2]
[404664374,1770397770717,-300.0,0.00015647,2]
[404664375,1770397770745,-1200.0,0.00015647,2]
[404664376,1770397770773,-300.0,0.00015647,2]
[404664377,1770397770795,-1805.65082263,0.00015648,2]
[404664378,1770397770806,-177.0,0.00015648,2]
[404664379,1770397770817,-300.0,0.00015648,2]
[404664380,1770397770832,-1200.0,0.00015648,2]
[404664381,1770397770965,-300.0,0.00015648,2]
[404664382,1770397770979,-1381.68663695,0.00015648,2]
[404664383,1770397770988,-300.0,0.00015648,2]
[404664384,1770397770998,-300.0,0.00015648,2]
[404664385,1770397771007,-300.0,0.00015648,2]
[404664386,1770397771016,-153.02171779,0.00015648,2]
[404664389,1770397773632,-146.97828221,0.00015648,2]
[404664390,1770397773666,-300.0,0.00015648,2]
[404664391,1770397773699,-300.0,0.00015648,2]
[404664392,1770397773730,-300.0,0.00015648,2]
[404664393,1770397773760,-300.0,0.00015648,2]
[404664394,1770397773790,-300.0,0.00015648,2]
[404664395,1770397773820,-300.0,0.00015648,2]
[404664396,1770397773851,-300.0,0.00015648,2]
[404664397,1770397773885,-300.0,0.00015648,2]
[404664398,1770397773915,-300.0,0.00015648,2]
[404664399,1770397773947,-300.0,0.00015648,2]
[404664400,1770397773979,-300.0,0.00015648,2]
[404664401,1770397774010,-600.0,0.0001596,2]
[404664402,1770397774039,-420.0,0.00017113,2]